[Event "FIDE WSTC Open 50 2025"]
[Site "Prague"]
[Date "2025.02.24"]
[Round "7.35"]
[White "Minnican, Alan"]
[Black "Berndt, Matthias"]
[Result "1/2-1/2"]
[Annotator "TA"]
[ECO "D00"]
[WhiteElo "2039"]
[BlackElo "2072"]
[PlyCount "70"]
[EventDate "2025.02.17"]
[EventType "team-tourn"]
[EventCountry "CZE"]
[SourceTitle "playchess.com"]
[Source "ChessBase"]
[SourceQuality "1"]
[TimeControl "40/5400+30:1800+30"]

{[%evp 12,70,8,-11,21,-11,30,-29,-3,-18,-24,-26,-24,-30,-21,-29,-36,-45,-4,-38,-4,-14,-20,-24,-15,-38,0,4,6,-35,0,-3,0,-21,2,6,5,0,8,4,2,0,7,6,11,11,49,0,77,72,98,9,3,2,9,2,7,8,8,0,4]} 1. d4 {[%emt 0:00:20]} d5 {[%emt 0:00:07]} 2. Bf4 {[%emt 0:00:27]} Nf6 {[%emt 0:00:20]} 3. e3 {[%emt 0:00:06]} e6 {[%emt 0:00:08]} 4. Nf3 {[%emt 0:00:22]} c5 {[%emt 0:00:24]} 5. Nbd2 {[%emt 0:01:01]} Nc6 {[%emt 0:00:24]} 6. c3 {[%emt 0:01:14]} Bd6 {[%emt 0:04:04] 6...cxd4 is setting a new trend.} 7. Bg3 {[%emt 0:00:35]} b6 {[%emt 0:05:13] D02: 1 d4 d5 2 Nf3 sidelines, including 2...Nf6 3 g3 and 2...Nf6 3 Bf4.} 8. Bd3 {[%emt 0:03:55]} Qc7 {[%emt 0:01:32]} 9. dxc5 {[%emt 0:12:52]} (9. e4 $142 cxd4 10. cxd4 Bxg3 11. hxg3) 9... bxc5 {[%emt 0:01:12] Black has an edge.} 10. e4 {[%emt 0:04:04]} Bxg3 $146 {[%emt 0:10:44]} ({Predecessor:} 10... Bb7 11. Qe2 dxe4 12. Nxe4 Nxe4 13. Bxe4 Rd8 14. Rd1 h6 15. Rxd6 Rxd6 16. Qb5 Ke7 17. Qxc5 {1-0 Kroneder,C (2045)-Hirn,E (2084) Mittelfranken-ch HT 2019 (3.4)}) 11. hxg3 {[%emt 0:00:13]} Rb8 {[%emt 0:00:42]} 12. exd5 {[%emt 0:09:26]} exd5 {[%emt 0:07:36][%cal Oc5c4]} 13. Rb1 {[%emt 0:08:03]} O-O {[%emt 0:03:22]} 14. O-O {[%emt 0:02:47]} Ng4 {[%emt 0:03:43]} 15. Bc2 {[%emt 0:17:54]} Bd7 {[%emt 0:03:26]} 16. Nb3 {[%emt 0:03:20]} Qd6 {[%emt 0:01:40]} 17. Qd2 {[%emt 0:10:57]} Nce5 {[%emt 0:14:40]} 18. Rfe1 {[%emt 0:06:22]} Nxf3+ {[%emt 0:06:29]} (18... Rfe8 {with more complications.} 19. Rbd1 h5 20. Na5 h4) 19. gxf3 {[%emt 0:00:07]} Nf6 {[%emt 0:00:17]} 20. Qe3 {[%emt 0:02:56]} Ba4 {[%emt 0:09:43]} 21. Qe5 {[%emt 0:04:10]} Qb6 {[%emt 0:01:43]} 22. Qf4 {[%emt 0:01:19]} Bxb3 {[%emt 0:02:14]} 23. axb3 {[%emt 0:02:03]} Rfe8 {[%emt 0:02:49]} 24. Kg2 {[%emt 0:00:53]} Rbd8 {[%emt 0:01:15]} 25. Rxe8+ {[%emt 0:01:49]} Rxe8 {[%emt 0:00:01]} 26. Qd2 {[%emt 0:00:21]} g6 {[%emt 0:02:18]} 27. Ra1 {[%emt 0:00:45]} Kg7 {[%emt 0:00:38]} 28. Ra4 {[%emt 0:01:37]} Re7 {[%emt 0:02:46]} 29. Qd3 {[%emt 0:01:07]} (29. Rh4 $14 {should be considered.}) 29... c4 {[%emt 0:04:16]} 30. bxc4 $16 {[%emt 0:02:01]} dxc4 {[%emt 0:00:02]} 31. Rxc4 {[%emt 0:00:45]} (31. Qxc4 $16 {Strongly threatening Ra6.} Qxb2 32. Bb3) 31... Qxb2 {[%emt 0:01:27] The position is equal.} 32. Rb4 {[%emt 0:00:37]} Qa1 {[%emt 0:01:04]} 33. Rb1 {[%emt 0:00:53]} Qa5 {[%emt 0:00:33]} 34. Rb5 {[%emt 0:00:56]} Qa1 {[%emt 0:02:43]} 35. Rb1 {[%emt 0:00:11]} Qa5 {[%emt 0:00:18] Weighted Error Value: White=0.17 (very precise) /Black=0.18 (very precise)   Mistake:       	White=3     	Black=1      Inaccurate:     	White=3     	Black=8      OK:         	White=6     	Black=8      Best:        	White=2     	---} 1/2-1/2

[Event "FIDE WSTC Open 50 2025"]
[Site "Prague"]
[Date "2025.02.24"]
[Round "7.36"]
[White "Kuna, Ralf-Michael"]
[Black "Hulme, William"]
[Result "1/2-1/2"]
[Annotator "TA"]
[ECO "C68"]
[WhiteElo "2072"]
[BlackElo "1909"]
[PlyCount "34"]
[EventDate "2025.02.17"]
[EventType "team-tourn"]
[EventCountry "CZE"]
[SourceTitle "playchess.com"]
[Source "ChessBase"]
[SourceQuality "1"]
[TimeControl "40/5400+30:1800+30"]

{[%evp 17,34,-10,-6,0,1,-18,-26,-34,-31,-30,-37,-36,-43,-47,-39,-41,-33,-45,-49]} 1. e4 {[%emt 0:00:06]} e5 {[%emt 0:00:11]} 2. Nf3 {[%emt 0:00:08]} Nc6 {[%emt 0:00:06]} 3. Bb5 {[%emt 0:00:21]} a6 {[%emt 0:00:07]} 4. Bxc6 {[%emt 0:00:28]} dxc6 {[%emt 0:00:14]} 5. d4 {[%emt 0:00:04]} exd4 {[%emt 0:00:11]} 6. Qxd4 {[%emt 0:00:05]} Qxd4 {[%emt 0:00:06]} 7. Nxd4 {[%emt 0:00:06]} Bd7 {[%emt 0:00:07]} 8. Nc3 {[%emt 0:00:37]} O-O-O {[%emt 0:00:18]} 9. Be3 {[%emt 0:00:10]} Re8 {[%emt 0:00:20]} 10. O-O-O {[%emt 0:01:48] C68: Ruy Lopez: Exchange Variation, sidelines.} Ne7 {[%emt 0:00:27]} 11. Rhe1 {[%emt 0:01:23]} Ng6 {[%emt 0:00:12]} 12. a3 {[%emt 0:02:15] Black has an edge.} c5 $146 {[%emt 0:12:45]} (12... h5 13. f4 c5 14. Nf3 f5 15. e5 Be7 16. Nd5 b6 17. Nxe7+ Rxe7 18. Ng5 Rhe8 {0-1 Appel,R (2507)-Graf,A (2646) Bundesliga 0405 2004 (9.4)}) 13. Nb3 {[%emt 0:02:03]} b6 {[%emt 0:00:17]} 14. f3 {[%emt 0:01:19] Black is slightly better.} Bd6 {[%emt 0:01:13]} 15. g3 {[%emt 0:01:43]} h5 {[%emt 0:11:06]} 16. Nd5 {[%emt 0:02:48][%cal Od5b6]} Kb7 {[%emt 0:04:48]} 17. Bf2 {[%emt 0:28:18]} h4 {[%emt 0:05:54] Weighted Error Value: White=0.05 (flawless) /Black=0.01 (flawless)   OK:         	White=2     	Black=6} 1/2-1/2

[Event "FIDE WSTC Open 50 2025"]
[Site "Prague"]
[Date "2025.02.24"]
[Round "7.37"]
[White "Kirszenberg, Marc"]
[Black "Sikorova, Olga"]
[Result "0-1"]
[Annotator "TA"]
[ECO "E20"]
[WhiteElo "2080"]
[BlackElo "2134"]
[PlyCount "82"]
[EventDate "2025.02.17"]
[EventType "team-tourn"]
[EventCountry "CZE"]
[SourceTitle "playchess.com"]
[Source "ChessBase"]
[SourceQuality "1"]
[TimeControl "40/5400+30:1800+30"]

{[%evp 12,82,10,17,15,16,15,13,10,13,48,29,18,16,42,32,92,18,29,16,30,8,52,54,56,56,66,73,46,-158,-142,-152,-129,-189,-107,-95,-118,-216,0,-129,-145,-144,-143,-164,-185,-183,-119,-134,-105,-289,-277,-367,-356,-493,-460,-839,-829,-1081,-1021,-1379,-1195,-1925,-1842,-2021,-1622,-2038,-1869,-2511,-2316,-1919,-2129,-4132,-3329]} 1. d4 {[%emt 0:00:02][%cal Bd2d4,Bd4d5][%mdl 32]} Nf6 {[%emt 0:00:08]} 2. c4 {[%emt 0:00:06]} e6 {[%emt 0:00:11]} 3. Nc3 {[%emt 0:00:05]} Bb4 {[%emt 0:00:10]} 4. f3 {[%emt 0:00:06]} c5 {[%emt 0:00:17]} 5. d5 {[%emt 0:00:04]} O-O {[%emt 0:00:25]} 6. e4 {[%emt 0:00:04]} d6 {[%emt 0:00:27]} 7. Nge2 {[%emt 0:00:06]} a6 {[%emt 0:01:15] E20: Nimzo-Indian: 4 g3 and 4 f3.} 8. a4 {[%emt 0:03:47]} exd5 {[%emt 0:04:17]} 9. cxd5 {[%emt 0:00:06]} Nbd7 {[%emt 0:09:38] The position is equal.} 10. Ng3 {[%emt 0:00:35] Inhibits Nh5.} Qa5 $146 {[%emt 0:05:17][%cal Oc5c4]} (10... Ne5 11. Be2 Re8 12. O-O c4 13. Kh1 Bd7 14. Be3 Rc8 15. Qd2 Bc5 16. Bxc5 Rxc5 {0-1 Santos Latasa,J (2586)-Socko,B (2625) Abu Dhabi op 26th 2019 (5)}) 11. Bd2 {[%emt 0:00:37]} Re8 {[%emt 0:04:12]} 12. Be2 {[%emt 0:00:08]} Nf8 {[%emt 0:13:25]} 13. O-O {[%emt 0:01:21]} Bd7 {[%emt 0:05:35]} (13... h6 $14) 14. Qc2 {[%emt 0:14:07]} (14. Bg5 $1 $16 {[%cal Rg5f6]}) 14... h6 $11 {[%emt 0:08:09]} 15. Kh1 {[%emt 0:10:34]} Qc7 {[%emt 0:06:56]} 16. f4 {[%emt 0:06:44]} c4 {[%emt 0:02:54] [#]} 17. Nb5 $1 {[%emt 0:11:45]} axb5 {[%emt 0:02:41]} 18. Bxb4 {[%emt 0:02:10]} Rxa4 {[%emt 0:05:39]} 19. Rxa4 {[%emt 0:00:12]} bxa4 {[%emt 0:00:01]} 20. Bxc4 $2 {[%emt 0:05:57]} (20. Qxc4 Qxc4 21. Bxc4 Nxe4 $17) (20. Bc3 $1 $14 {keeps the upper hand.}) 20... Rc8 $17 {[%emt 0:02:26] Black plays on the queen side and is better} 21. Rc1 {[%emt 0:00:07]} Ng4 {[%emt 0:01:11]} 22. Qd2 {[%emt 0:07:59]} (22. Nh5 $17 b5 23. h3) 22... b5 {[%emt 0:05:52]} (22... Qb6 $1 $19 {Threatens to win with ...Nf2+.} 23. h3 Ne3) 23. h3 {[%emt 0:00:26]} Nf6 {[%emt 0:01:57]} 24. e5 {[%emt 0:02:37]} (24. Ba5 $17 Qa7 25. e5 dxe5 (25... bxc4 $2 26. exf6 g6 27. Ne4 $18) (25... Ne8 26. e6 $17) 26. fxe5 Nxd5 (26... Rxc4 27. Rxc4 bxc4 28. exf6 $14) 27. Qxd5 bxc4 (27... Qxa5 28. Qxf7+ Kh7 29. Nh5) (27... Rxc4 28. Rxc4 bxc4 29. Bc3 $17) 28. Qd2) 24... Ne8 $2 {[%emt 0:03:03]} (24... dxe5 $19 25. d6 Qb7) 25. exd6 {[%emt 0:03:59]} (25. Ba5 Qa7 26. e6 Rxc4 $17 (26... fxe6 27. dxe6 Rxc4 28. Rxc4 $17)) (25. e6 $1 $11 Bxe6 (25... fxe6 26. dxe6 bxc4 27. exd7 $11) (25... bxc4 26. exd7 Nxd7 27. Nf5 $11) 26. dxe6 bxc4 27. Ba5) 25... Nxd6 {[%emt 0:00:08]} 26. Bxd6 {[%emt 0:00:07]} Qxd6 {[%emt 0:00:05]} 27. Ba2 {[%emt 0:00:15]} Rxc1+ {[%emt 0:08:21]} 28. Qxc1 {[%emt 0:00:04]} Qg6 {[%emt 0:00:24]} ({Black should try} 28... Ng6 $19 29. Ne4 Qxf4 30. Qxf4 Nxf4) 29. Kh2 {[%emt 0:01:14]} Qd3 {[%emt 0:00:24] Against Qd2. Black is more active.} 30. Qc7 $2 {[%emt 0:00:56] White does not recover from this.} (30. Qe1 $17 {keeps fighting.}) 30... Qd2 $19 {[%emt 0:03:20]} 31. Qe5 {[%emt 0:02:30] [#] Intending Nh5 and mate.} Ng6 $1 {[%emt 0:04:30][%csl LRe5,LRf4]} (31... a3 32. bxa3 Ng6 (32... Qxa2 $2 33. Nh5 $18) 33. Qb8+ Kh7 34. Bb1 Qxd5 35. Qd8 $18) 32. Qb8+ {[%emt 0:00:17]} Kh7 {[%emt 0:00:01][%cal Og6h4] ( -> ...Nh4!). Black is clearly winning.} 33. Bb1 {[%emt 0:00:29]} (33. Qb7 $142 Qxb2 (33... Nxf4 34. Bb1+ f5 35. d6 $17) 34. Qxd7) 33... Qxb2 {[%emt 0:00:18]} (33... Qxd5 34. f5 Nh4 35. Be4 $11) 34. Bxg6+ {[%emt 0:00:21]} fxg6 {[%emt 0:00:09][%mdl 4096] Endgame KQB-KQN. Black is a pawn up.} 35. Qc7 {[%emt 0:01:26] [#]} a3 $1 {[%emt 0:01:15]} 36. Qxd7 {[%emt 0:00:32]} a2 {[%emt 0:00:25]} 37. f5 {[%emt 0:00:16]} g5 {[%emt 0:01:26]} (37... a1=Q 38. fxg6+ Kxg6 39. Qf5#) 38. Qe6 {[%emt 0:06:08] [#]} Qf6 $1 {[%emt 0:00:35]} (38... a1=B 39. d6 Qf6 40. Ne4 Qe5+ 41. Ng3 Qxe6 42. fxe6 $18) (38... a1=Q 39. Qg6+ Kh8 40. Qe8+ Kh7 41. Qg6+ Kh8 42. Qe8+ Kh7 43. Qg6+ $11) 39. d6 {[%emt 0:00:22]} a1=Q {[%emt 0:01:18]} ({Weaker is} 39... a1=B 40. d7 Be5 41. Qxe5 Qxe5 42. d8=Q $18 (42. d8=B $2 {is the wrong capture.} Kg8 $19)) 40. d7 {[%emt 0:00:16] [#]} g4 $1 {[%emt 0:01:07]} 41. Qe8 {[%emt 0:32:17]} (41. Qe2 Qfd4) 41... Qad4 {[%emt 0:04:31] Weighted Error Value: White=1.16/Black=0.19 (very precise)   Loses game:     	White=1     	---        Missed win:     	---       	Black=1      Mistake:       	White=6     	Black=3      Inaccurate:     	White=3     	Black=3      OK:         	White=3     	Black=6      Best:        	White=3     	Black=4      Strong:       	---       	Black=1} 0-1

[Event "FIDE WSTC Open 50 2025"]
[Site "Prague"]
[Date "2025.02.24"]
[Round "7.38"]
[White "Folkova, Martina"]
[Black "Guiot Dorel, Jerome"]
[Result "1/2-1/2"]
[Annotator "TA"]
[ECO "B33"]
[WhiteElo "2031"]
[BlackElo "2030"]
[PlyCount "32"]
[EventDate "2025.02.17"]
[EventType "team-tourn"]
[EventCountry "CZE"]
[SourceTitle "playchess.com"]
[Source "ChessBase"]
[SourceQuality "1"]
[TimeControl "40/5400+30:1800+30"]

{[%evp 15,32,38,45,45,44,32,38,0,0,-6,-19,-14,-14,-15,7,-27,-30,-37,19]} 1. e4 {[%emt 0:00:06]} c5 {[%emt 0:00:29]} 2. Nf3 {[%emt 0:00:10][%cal Bg1f3,Bf3d4,Bd4b5,Bb5a3,Ba3c4,Bc4b6][%mdl 32]} Nc6 {[%emt 0:00:09]} 3. d4 {[%emt 0:00:08]} cxd4 {[%emt 0:00:08]} 4. Nxd4 {[%emt 0:00:07]} Nf6 {[%emt 0:00:06]} 5. Nc3 {[%emt 0:00:05]} e5 {[%emt 0:00:07]} 6. Ndb5 {[%emt 0:00:10]} d6 {[%emt 0:00:16]} 7. Bg5 {[%emt 0:00:19]} a6 {[%emt 0:00:11]} 8. Na3 {[%emt 0:00:25]} Be6 {[%emt 0:00:56]} 9. Nc4 {[%emt 0:01:07] B33: Sicilian: Pelikan and Sveshnikov Variations.} Rb8 {[%emt 0:00:14]} 10. Bxf6 {[%emt 0:03:26]} Qxf6 {[%emt 0:00:21]} 11. Nb6 {[%emt 0:05:48] White is slightly better.} Qg6 {[%emt 0:07:19]} 12. Qd3 $146 {[%emt 0:15:33]} (12. h4 Be7 13. Qd2 Bd8 14. Nc4 O-O 15. h5 Qg5 16. Qxg5 Bxg5 17. Bd3 {0-1 Audi,A (2395)-Harsha,B (2547) Visakhapatnam Vizag op 2022 (9)}) 12... Nb4 {[%emt 0:13:13] Against Ncd5} 13. Qe2 {[%emt 0:06:56]} Be7 {[%emt 0:02:07]} 14. O-O-O {[%emt 0:02:15]} O-O {[%emt 0:05:42][%cal Oe7d8]} 15. a3 {[%emt 0:06:14]} Nc6 {[%emt 0:00:19]} 16. Ncd5 {[%emt 0:01:16]} Bg5+ {[%emt 0:05:11] Weighted Error Value: White=0.13 (very precise) /Black=0.05 (flawless)   Mistake:       	---       	Black=1      Inaccurate:     	White=2     	---        OK:         	White=2     	Black=4} (16... Bd8 $15) 1/2-1/2

[Event "FIDE WSTC Open 50 2025"]
[Site "Prague"]
[Date "2025.02.24"]
[Round "7.39"]
[White "Coste, Thierry"]
[Black "Kubikova, Hana"]
[Result "1/2-1/2"]
[Annotator "TA"]
[ECO "B42"]
[WhiteElo "2027"]
[BlackElo "2070"]
[PlyCount "37"]
[EventDate "2025.02.17"]
[EventType "team-tourn"]
[EventCountry "CZE"]
[SourceTitle "playchess.com"]
[Source "ChessBase"]
[SourceQuality "1"]
[TimeControl "40/5400+30:1800+30"]

{[%evp 14,37,16,4,7,-57,27,7,52,30,41,45,49,23,26,21,58,58,88,68,83,77,86,76,104,108]} 1. e4 {[%emt 0:00:06]} c5 {[%emt 0:00:08]} 2. Nf3 {[%emt 0:00:18]} e6 {[%emt 0:00:39]} 3. d4 {[%emt 0:00:11]} cxd4 {[%emt 0:00:05]} 4. Nxd4 {[%emt 0:00:05]} a6 {[%emt 0:00:58]} 5. Bd3 {[%emt 0:03:04]} d6 {[%emt 0:01:37]} 6. Nc3 {[%emt 0:01:17]} Nf6 {[%emt 0:00:24]} 7. O-O {[%emt 0:00:25]} Be7 {[%emt 0:00:26]} 8. f4 {[%emt 0:02:50]} O-O {[%emt 0:02:22] B82: Sicilian Scheveningen: 6 f4.} 9. Qf3 {[%emt 0:01:57]} ({White should try} 9. Kh1 $11) 9... Nbd7 {[%emt 0:01:48]} (9... Qb6 $1 $15 10. Be3 Qxb2) 10. g4 {[%emt 0:13:46]} Nc5 {[%emt 0:04:58] The position is equal.} 11. Be3 {[%emt 0:04:01]} d5 $146 {[%emt 0:18:24]} ({Predecessor:} 11... e5 12. Nf5 Nxd3 13. cxd3 Bxf5 14. exf5 exf4 15. Bxf4 h6 16. Rae1 d5 17. d4 Rc8 {1-0 Tanenbaum,Z (2137)-Solovchuk,A (2320) Titled Tuesday intern op 12th Jan blitz 2021 (4)}) 12. e5 {[%emt 0:04:15]} Nfd7 {[%emt 0:10:38]} 13. Qh3 {[%emt 0:08:52][%csl Gd3][%cal Rh3h7] [#]} Nxd3 {[%emt 0:00:26]} 14. cxd3 {[%emt 0:00:05]} Bc5 {[%emt 0:04:05]} 15. Rac1 {[%emt 0:07:48]} b5 {[%emt 0:08:08] [#]} 16. b4 $1 {[%emt 0:04:55]} Bb6 {[%emt 0:03:42]} (16... Bxd4 17. Bxd4) 17. Nc6 {[%emt 0:06:57] White is better. White is much more active. The black rooks are passive.} Bxe3+ {[%emt 0:02:11]} 18. Qxe3 {[%emt 0:00:07]} Qb6 {[%emt 0:00:13]} 19. Qxb6 {[%emt 0:05:31] Weighted Error Value: White=0.22 (precise) /Black=0.27 (precise)   Mistake:       	White=1     	Black=1      Inaccurate:     	White=1     	Black=4      OK:         	White=3     	Black=1      Best:        	White=1     	Black=1} 1/2-1/2

[Event "FIDE WSTC Open 50 2025"]
[Site "Prague"]
[Date "2025.02.24"]
[Round "7.40"]
[White "Svobodova, Michaela"]
[Black "Keller, Christophe"]
[Result "1/2-1/2"]
[Annotator "TA"]
[ECO "C01"]
[WhiteElo "2048"]
[BlackElo "1997"]
[PlyCount "132"]
[EventDate "2025.02.17"]
[EventType "team-tourn"]
[EventCountry "CZE"]
[SourceTitle "playchess.com"]
[Source "ChessBase"]
[SourceQuality "1"]
[TimeControl "40/5400+30:1800+30"]

{[%evp 19,132,-34,17,-100,-96,-87,-95,-95,-81,-115,-87,-88,-96,-87,-75,-52,-54,-76,-52,-72,-62,-73,-59,-62,-66,-60,-58,-49,-56,-63,-25,-37,-44,-40,-29,-26,-25,-25,-22,-61,-39,-46,-29,-43,-25,-31,0,-70,-20,-14,-20,-27,0,0,0,-17,-6,-14,0,0,0,-26,-22,-14,0,-23,-21,-23,-12,-16,0,-59,-5,0,0,0,0,0,0,0,0,0,0,0,0,-8,-8,-8,-8,-8,-8,-8,-8,-8,-8,-8,-8,-8,-8,-8,0,0,0,0,0,0,0,0,7,2,2,0,0,0,0]} 1. e4 {[%emt 0:00:10]} e6 {[%emt 0:00:04]} 2. d4 {[%emt 0:00:21]} d5 {[%emt 0:00:05]} 3. exd5 {[%emt 0:00:21]} exd5 {[%emt 0:00:05]} 4. Nf3 {[%emt 0:00:20]} Nc6 {[%emt 0:00:24]} 5. Bd3 {[%emt 0:00:59]} Bg4 {[%emt 0:03:13]} 6. c3 {[%emt 0:00:57]} Qd7 {[%emt 0:01:07]} 7. O-O {[%emt 0:01:11]} Bd6 {[%emt 0:00:45]} 8. Re1+ {[%emt 0:00:59]} Nge7 {[%emt 0:00:09]} 9. Nbd2 {[%emt 0:00:42]} O-O {[%emt 0:07:30]} 10. Qc2 {[%emt 0:03:20]} Bf5 {[%emt 0:04:19]} (10... Ng6 $15) 11. Ne5 {[%emt 0:07:49] C01: French: Exchange Variation.} (11. b4 $11 {remains equal.}) 11... Bxe5 $17 {[%emt 0:05:51]} 12. dxe5 {[%emt 0:01:22]} Bxd3 {[%emt 0:07:47]} 13. Qxd3 {[%emt 0:00:19] Black is better.} Ng6 {[%emt 0:00:08] Prevents f4} 14. Qg3 {[%emt 0:13:41]} Ngxe5 {[%emt 0:08:42]} 15. Nf1 $146 {[%emt 0:02:56][%cal Bd2f1,Bf1e3,Be3f5][%mdl 32]} (15. Rxe5 Nxe5 16. Qxe5 Rae8 $19) ({Predecessor:} 15. Rxe5 Nxe5 16. Qxe5 Rfe8 17. Qd4 Re1+ 18. Nf1 Qb5 19. c4 Qxc4 20. Qxc4 dxc4 21. g3 {0-1 Tasoko,T-Sega,C (2286) Paulista-ch Sorocaba 2001 (1)}) 15... f6 {[%emt 0:27:30]} 16. Bf4 {[%emt 0:03:42]} Qf7 {[%emt 0:03:17]} 17. Rad1 {[%emt 0:02:29]} Rad8 {[%emt 0:00:58]} 18. Ne3 {[%emt 0:02:08]} Kh8 {[%emt 0:03:46]} 19. Nf5 {[%emt 0:02:40]} Rd7 {[%emt 0:04:47]} 20. h4 {[%emt 0:05:03]} Qg6 {[%emt 0:04:32]} 21. Bxe5 {[%emt 0:12:40]} fxe5 {[%emt 0:03:52]} 22. Qxg6 {[%emt 0:02:24]} hxg6 {[%emt 0:00:02]} 23. Ne3 {[%emt 0:00:52]} Rfd8 {[%emt 0:00:35]} 24. Ng4 {[%emt 0:01:15]} Re7 {[%emt 0:05:55]} 25. f3 {[%emt 0:00:44]} d4 {[%emt 0:01:35]} 26. cxd4 {[%emt 0:01:18]} exd4 {[%emt 0:00:29]} 27. Rxe7 {[%emt 0:00:40]} Nxe7 $15 {[%emt 0:00:02][%mdl 4096] Endgame KRN-KRN. Black is a pawn up.} 28. Ne5 {[%emt 0:00:18]} Kg8 {[%emt 0:00:23] Inhibits Nf7.} 29. b4 {[%emt 0:00:47]} Rd5 {[%emt 0:00:13]} 30. f4 {[%emt 0:01:26]} a5 {[%emt 0:03:45]} 31. a3 {[%emt 0:01:25]} axb4 {[%emt 0:00:04]} 32. axb4 {[%emt 0:00:05]} b6 {[%emt 0:00:15]} 33. b5 {[%emt 0:01:57]} Rxb5 {[%emt 0:00:14]} (33... Nf5 $1 $15 34. Nxg6 Kf7 (34... Rxb5 35. g4 $17) 35. Ne5+ Kf8) 34. Rxd4 $11 {[%emt 0:00:12]} Rd5 {[%emt 0:01:04]} 35. Ra4 {[%emt 0:01:57]} Ra5 {[%emt 0:00:08]} 36. Rd4 {[%emt 0:00:30]} Rd5 {[%emt 0:00:51]} 37. Ra4 {[%emt 0:00:09]} Rd8 {[%emt 0:00:24]} 38. Ra7 {[%emt 0:01:09]} Rc8 {[%emt 0:00:08]} 39. Kf2 {[%emt 0:01:05]} Kh7 {[%emt 0:00:27]} 40. g4 {[%emt 0:02:16]} Nd5 {[%emt 0:01:07]} 41. Kf3 {[%emt 0:30:47]} c5 {[%emt 0:33:18]} 42. Ke4 {[%emt 0:04:37]} Nf6+ {[%emt 0:00:46]} 43. Kd3 $1 {[%emt 0:00:41]} Rd8+ {[%emt 0:00:28]} 44. Ke3 {[%emt 0:02:37]} Rd4 {[%emt 0:00:00]} 45. Ra8 {[%emt 0:00:00]} (45. Rf7 $11) 45... Nd5+ {[%emt 0:00:00]} ({Better is} 45... g5 $1 $15 46. hxg5 Nd5+ 47. Kf3 Rxf4+ 48. Kg3 Re4 49. g6+ Kh6) 46. Kf3 {[%emt 0:00:00] The position is equal.} Rxf4+ {[%emt 0:00:00]} 47. Kg3 {[%emt 0:00:00]} g5 {[%emt 0:00:00] [#]} 48. h5 {[%emt 0:00:00]} Nf6 {[%emt 0:00:00]} 49. Ng6 $1 {[%emt 0:00:00][%csl Gg6][%cal Ra8h8]} Rxg4+ {[%emt 0:00:00]} 50. Kh3 {[%emt 0:00:00][%csl Gg6][%cal Ra8h8]} Rg3+ {[%emt 0:00:00]} 51. Kxg3 {[%emt 0:00:00][%csl Gg6][%cal Ra8h8] [#]} Nxh5+ {[%emt 0:00:00]} 52. Kg4 {[%emt 0:00:35]} Kxg6 {[%emt 0:00:00] KR-KN} 53. Rb8 {[%emt 0:03:50]} Nf6+ {[%emt 0:00:00]} 54. Kg3 {[%emt 0:01:47]} Kf5 {[%emt 0:00:00]} 55. Rxb6 Ne4+ {[%emt 0:00:00]} 56. Kg2 {[%emt 0:01:27]} c4 {[%emt 0:00:00] Hoping for ...g4.} 57. Kf3 {[%emt 0:02:53] Hoping for Rb5+.} g4+ {[%emt 0:00:00]} 58. Ke3 {[%emt 0:00:14]} Nc3 {[%emt 0:00:00] ( -> ...Nd5+) Repels Rb5+} 59. Rc6 {[%emt 0:02:17]} Nd1+ {[%emt 0:01:54]} 60. Ke2 {[%emt 0:04:10]} Nb2 {[%emt 0:00:08]} 61. Ke3 {[%emt 0:01:26]} Kg5 {[%emt 0:02:43]} 62. Rc7 {[%emt 0:03:58]} g6 {[%emt 0:00:05]} 63. Rc6 {[%emt 0:01:32]} c3 {[%emt 0:00:33]} 64. Ke2 {[%emt 0:01:17]} Na4 {[%emt 0:01:44]} 65. Rc4 {[%emt 0:00:27]} Nb6 {[%emt 0:00:04]} 66. Rxc3 {[%emt 0:00:16]} Nd7 {[%emt 0:00:02] Weighted Error Value: White=0.13 (very precise) /Black=0.11 (very precise)   Mistake:       	White=2     	Black=2      Inaccurate:     	White=3     	Black=3      OK:         	White=25    	Black=20     Best:        	White=5     	Black=4      Strong:       	White=2     	---} 1/2-1/2